bitfinex-derivatives/quotes_BTCF0:USTF0_20241029
["timestamp","ask_amount","ask_price","bid_price","bid_amount"]
[1730226334529,1.63162071,73019.0,73018.0,0.068479]
[1730226335033,1.63162071,73019.0,73018.0,0.13674851]
[1730226335428,1.70009871,73019.0,73018.0,0.13674851]
[1730226335734,1.70009871,73019.0,73018.0,0.068479]
[1730226335933,2.06089871,73019.0,73014.0,0.06826951]
[1730226336131,0.20010271,73015.0,73014.0,0.13675251]
[1730226336338,0.20010271,73015.0,73014.0,0.068483]
[1730226338637,0.20010271,73015.0,73008.0,0.13675751]
[1730226338838,0.20010871,73009.0,73008.0,0.068488]
[1730226339134,0.20010871,73009.0,73008.0,0.22971532]
[1730226339540,0.26324142,73009.0,73007.0,0.06819861]
[1730226339740,0.068495,73002.0,73001.0,0.068494]
[1730226340041,0.10267802,73002.0,73001.0,0.068494]
[1730226340237,1.60267802,73002.0,73001.0,0.08846131]
[1730226340545,1.73392039,73002.0,73001.0,0.08846131]
[1730226340858,1.73392039,73002.0,73001.0,0.068494]
[1730226341035,1.60258141,73002.0,73001.0,0.068494]
[1730226341438,0.068499,72998.0,72997.0,0.068499]
[1730226341740,0.13162071,72998.0,72997.0,0.068499]
[1730226342745,0.20011871,72998.0,72997.0,0.068499]
[1730226346640,0.13162071,72998.0,72997.0,0.068499]
[1730226346852,0.00076,73002.0,73001.0,0.068495]
[1730226347046,0.3608,73004.0,73001.0,0.13162071]
[1730226347242,0.3608,73004.0,73003.0,0.068493]
[1730226350047,0.3608,73004.0,73003.0,0.08775955]
[1730226351039,0.56091271,73004.0,73003.0,0.08775955]
[1730226353156,0.56091271,73004.0,73003.0,0.24890758]
[1730226353549,0.56091271,73004.0,73003.0,0.15595816]
[1730226354149,0.3608,73004.0,73003.0,0.15595816]
[1730226354762,0.3608,73004.0,73003.0,0.08775955]
[1730226357256,0.068492,73005.0,73004.0,0.068492]
[1730226357845,0.1027045,73005.0,73004.0,0.068492]
[1730226358447,0.0342125,73005.0,73004.0,0.068492]
[1730226359146,0.03400467,73005.0,73004.0,0.068492]
[1730226359753,0.03400467,73005.0,73004.0,0.20011271]
[1730226359963,0.068487,73010.0,73004.0,0.20011271]
[1730226360161,0.03402799,73009.0,73004.0,0.20011271]
[1730226360463,0.076071,73008.0,73007.0,0.06849]
[1730226360662,0.03402799,73008.0,73007.0,0.06849]
[1730226360963,0.03402799,73008.0,73004.0,0.20011271]
[1730226361262,1.569206,73011.0,73010.0,0.068487]
[1730226361464,1.60243773,73011.0,73010.0,0.068487]
[1730226362356,1.73405844,73011.0,73010.0,0.068487]
[1730226362856,1.70010671,73011.0,73010.0,0.068487]
[1730226365465,0.068492,73005.0,73004.0,0.068492]
[1730226365759,0.20011271,73005.0,73004.0,0.068492]
[1730226366560,0.08639323,73005.0,73003.0,0.02001818]
[1730226366761,0.08639323,73005.0,73001.0,0.42899861]
[1730226367068,1.568486,73011.0,73001.0,0.42899861]
[1730226367069,0.15488723,73002.0,73001.0,0.49749361]
[1730226368051,0.08639323,73002.0,73001.0,0.59062411]
[1730226368361,0.15488223,73009.0,73008.0,0.068488]
[1730226368767,0.068491,73005.0,73004.0,0.15488423]
[1730226369763,0.1444242,73005.0,73004.0,0.068491]
[1730226370165,0.23081743,73005.0,73004.0,0.068491]
[1730226370670,0.068494,73002.0,73001.0,0.068495]
[1730226371262,0.23082043,73002.0,73001.0,0.068495]
[1730226372769,0.0759332,73002.0,73001.0,0.15488823]
[1730226373068,0.3608,73006.0,73001.0,0.15488823]
[1730226373367,0.07615438,73005.0,73004.0,0.068492]
[1730226374868,0.42929,73006.0,73001.0,0.068495]
[1730226374869,0.3608,73006.0,73001.0,0.068495]
[1730226375071,0.07558944,73005.0,73004.0,0.068492]
[1730226375870,0.03354414,73005.0,73004.0,0.068492]
[1730226376074,0.07558941,73005.0,73004.0,0.068492]
[1730226376267,0.07558941,73005.0,73004.0,0.20012071]
[1730226376765,0.0335417,73005.0,73004.0,0.13162871]
[1730226377073,0.0335417,73005.0,73004.0,0.61104071]
[1730226377276,1.50076,73011.0,73010.0,0.068487]
[1730226377468,0.3608,73026.0,73025.0,0.068473]
[1730226378066,1.8608,73026.0,73025.0,0.068473]
[1730226378561,1.929272,73026.0,73025.0,0.068473]
[1730226381471,1.8608,73026.0,73023.0,0.01965071]
[1730226381773,0.20010271,73024.0,73023.0,0.068474]
[1730226382275,0.13162871,73024.0,73023.0,0.068474]
[1730226383369,1.86152,73026.0,73025.0,0.068473]
[1730226383567,1.99242871,73026.0,73025.0,0.068473]
[1730226383766,2.06090071,73026.0,73025.0,0.068473]
[1730226385763,2.06090071,73026.0,73025.0,0.1093443]
[1730226385984,2.06090071,73026.0,73025.0,0.068473]
[1730226386871,0.068473,73025.0,73024.0,0.04086845]
[1730226387173,0.068474,73023.0,73022.0,0.04086845]
[1730226387374,0.068474,73023.0,73020.0,0.04086845]
[1730226387375,0.3608,73023.0,73020.0,0.04086845]
[1730226387578,0.13162871,73021.0,73019.0,0.10934645]
[1730226387766,0.068477,73020.0,73019.0,0.10934645]
[1730226387973,0.068477,73020.0,73019.0,0.068478]
[1730226388275,0.06848,73018.0,73017.0,0.10934845]
[1730226388480,0.20010871,73018.0,73015.0,0.01997692]
[1730226388675,0.20010871,73018.0,73012.0,0.05456865]
[1730226388676,0.49242871,73016.0,73014.0,0.068483]
[1730226388982,0.068482,73015.0,73014.0,0.068483]
[1730226389574,0.068482,73015.0,73013.0,0.04088241]
[1730226389774,0.068482,73015.0,73010.0,0.07054178]
[1730226389775,0.1266,73014.0,73010.0,0.11142419]
[1730226389980,0.13162871,73011.0,73010.0,0.07054178]
[1730226390879,0.20011471,73011.0,73010.0,0.07054178]
[1730226392377,0.20011471,73011.0,73010.0,0.00205478]
[1730226392584,0.13162871,73011.0,72995.0,0.05963388]
[1730226392771,0.13162871,73001.0,73000.0,0.068496]
[1730226394774,0.20012371,73001.0,73000.0,0.068496]
[1730226394971,0.23366724,73001.0,73000.0,0.068496]
[1730226395177,0.20012371,73001.0,73000.0,0.068496]
[1730226395376,1.70012371,73001.0,73000.0,0.068496]
[1730226395883,1.73366838,73001.0,73000.0,0.068496]
[1730226398684,1.70012371,73001.0,73000.0,0.068496]
[1730226399077,1.568495,73001.0,73000.0,0.068496]
[1730226399879,1.568495,73001.0,73000.0,0.16330415]
[1730226400675,1.568495,73001.0,73000.0,0.29493286]
[1730226402686,1.568495,73001.0,73000.0,0.24522756]
[1730226403283,1.568495,73001.0,73000.0,0.16330415]
[1730226404385,1.568495,73001.0,73000.0,0.16266365]
[1730226406890,1.5,73001.0,73000.0,0.16266365]
[1730226407989,1.568495,73001.0,73000.0,0.068496]
[1730226410485,1.5,73001.0,73000.0,0.068496]
[1730226410687,1.5,73001.0,73000.0,0.15488266]
[1730226411984,1.568495,73001.0,73000.0,0.15488266]
[1730226412490,1.568495,73001.0,73000.0,0.068496]
[1730226412491,1.65488166,73001.0,73000.0,0.068496]
[1730226414181,1.568495,73001.0,73000.0,0.068496]
[1730226414986,1.568495,73001.0,73000.0,0.16293124]
[1730226415385,1.568495,73001.0,73000.0,0.24485465]
[1730226416385,1.568495,73001.0,73000.0,0.16293124]
[1730226416787,1.568495,73001.0,73000.0,0.24491413]
[1730226417390,1.568495,73001.0,73000.0,0.16293124]
[1730226418601,1.568495,73001.0,73000.0,0.16313765]
[1730226420698,1.568495,73001.0,73000.0,0.27598724]
[1730226420897,1.568495,73001.0,73000.0,0.16313765]
[1730226421393,1.568495,73001.0,73000.0,0.27582323]
[1730226421801,1.568495,73001.0,73000.0,0.27582721]
[1730226422805,1.568495,73001.0,73000.0,0.16308306]
[1730226424102,1.929295,73001.0,73000.0,0.16308306]
[1730226424810,2.126995,73001.0,73000.0,0.16308306]
[1730226426602,2.126995,73001.0,73000.0,0.16307812]
[1730226427799,2.21338166,73001.0,73000.0,0.16307812]
[1730226429902,2.21338166,73001.0,73000.0,0.068496]
[1730226431199,2.126995,73001.0,73000.0,0.068496]
[1730226431601,2.21338166,73001.0,73000.0,0.068496]
[1730226435514,2.126995,73001.0,73000.0,0.068496]
[1730226438011,2.126995,73001.0,73000.0,0.27619685]
[1730226441006,2.126995,73001.0,73000.0,0.16325169]
[1730226443609,1.9269,73001.0,73000.0,0.16325169]
[1730226443805,1.8608,73001.0,73000.0,0.16325169]
[1730226444512,1.8608,73001.0,73000.0,0.27604946]
[1730226445111,1.8608,73001.0,73000.0,0.068496]
[1730226445921,1.929295,73001.0,73000.0,0.068496]
[1730226446332,1.568495,73001.0,73000.0,0.068496]
[1730226447423,1.929295,73001.0,73000.0,0.068496]
[1730226447923,1.8608,73001.0,73000.0,0.068496]
[1730226449118,0.3608,73007.0,73006.0,0.06849]
[1730226449325,0.36285512,73016.0,73006.0,0.15487666]
[1730226449627,0.36285512,73016.0,73015.0,0.15486866]
[1730226449832,0.00205512,73016.0,73015.0,0.15486866]
[1730226452733,0.00205512,73016.0,73015.0,0.068482]
[1730226454428,0.00205512,73016.0,73015.0,0.08842402]
[1730226456134,0.00205512,73016.0,73015.0,0.17481068]
[1730226456341,0.00205512,73016.0,73015.0,0.29991068]
[1730226456730,0.00205512,73016.0,73015.0,0.39943068]
[1730226460136,0.00205512,73016.0,73015.0,0.29991068]
[1730226460137,0.07762584,73016.0,73015.0,0.29991068]
[1730226460337,0.07762584,73016.0,73015.0,0.39943068]
[1730226461036,0.03559095,73016.0,73015.0,0.39943068]
[1730226461833,0.03559095,73016.0,73015.0,0.31304402]
[1730226463940,0.03559127,73016.0,73015.0,0.31304402]
[1730226464640,0.03559127,73016.0,73015.0,0.39943068]
[1730226465034,0.03559127,73016.0,73015.0,0.45433068]
[1730226465230,0.04409059,73016.0,73015.0,0.45433068]
[1730226465434,0.07762674,73016.0,73015.0,0.45433068]
[1730226468041,0.00205512,73016.0,73015.0,0.35481068]
[1730226468242,0.00205512,73016.0,73015.0,0.45433068]
[1730226470642,0.3608,73025.0,73024.0,0.068474]
[1730226470842,0.068465,73034.0,73024.0,0.068474]
[1730226470843,0.3608,73031.0,73028.0,0.06847]
[1730226471040,0.44718666,73031.0,73028.0,0.06847]
[1730226471948,0.51565466,73031.0,73028.0,0.06847]
[1730226472752,0.60204132,73031.0,73028.0,0.06847]
[1730226473358,0.194569,73030.0,73028.0,0.06847]
[1730226475244,0.194569,73030.0,73025.0,0.09948]
[1730226475245,0.18930076,73029.0,73025.0,0.06991674]
[1730226475553,0.08638666,73026.0,73025.0,0.13838974]
[1730226475747,0.16217484,73026.0,73025.0,0.13838974]
[1730226476650,0.07578818,73026.0,73025.0,0.13838974]
[1730226476852,0.16217484,73026.0,73025.0,0.13838974]
[1730226477649,0.08638666,73026.0,73025.0,0.13838974]
[1730226477846,0.16195084,73026.0,73025.0,0.068473]
[1730226478049,0.16195084,73026.0,73025.0,0.08808316]
[1730226478850,0.07556418,73026.0,73025.0,0.08808316]
[1730226479049,0.16195084,73026.0,73025.0,0.08808316]
[1730226480353,0.16195084,73026.0,73025.0,0.05298879]
[1730226480855,0.21106342,73026.0,73025.0,0.05298879]
[1730226481067,0.23042284,73026.0,73025.0,0.05298879]
[1730226481355,0.27953542,73026.0,73025.0,0.03337863]
[1730226482259,0.15485866,73026.0,73025.0,0.03337863]
[1730226485960,0.068477,73020.0,73019.0,0.123378]
[1730226486163,0.51566366,73020.0,73019.0,0.123378]
[1730226490061,0.51566366,73020.0,72999.0,0.06834318]
[1730226490062,0.4876,72998.0,72994.0,2.1e-07]
[1730226490254,0.4876,72998.0,72948.0,0.3608]
[1730226490255,0.068518,72977.0,72948.0,0.3608]
[1730226490456,0.08638666,72951.0,72950.0,0.068542]
[1730226490863,0.08638666,72951.0,72950.0,0.479782]
[1730226491053,0.08638666,72951.0,72950.0,0.068542]
[1730226491662,0.08638666,72951.0,72950.0,0.167902]
[1730226492556,0.13172012,72956.0,72955.0,0.068538]
[1730226492963,0.13172012,72956.0,72955.0,0.167898]
[1730226493665,0.13172012,72956.0,72954.0,0.3608]
[1730226494062,0.068538,72955.0,72954.0,0.3608]
[1730226494461,0.13172012,72956.0,72955.0,0.068538]
[1730226494672,0.13172012,72960.0,72954.0,0.3608]
[1730226494859,0.13172012,72964.0,72954.0,0.49252012]
[1730226495061,0.068531,72963.0,72961.0,0.068533]
[1730226495259,0.13172012,72964.0,72961.0,0.068533]
[1730226495461,0.068532,72962.0,72961.0,0.068533]
[1730226496170,0.13172012,72964.0,72959.0,0.09936]
[1730226496171,0.068534,72960.0,72959.0,0.167893]
[1730226496775,0.068534,72960.0,72959.0,0.068533]
[1730226501369,0.068533,72962.0,72961.0,0.068531]
[1730226502178,0.068539,72954.0,72953.0,0.068539]
[1730226502584,0.068544,72949.0,72948.0,0.3608]
[1730226502776,0.06854,72953.0,72948.0,0.3608]
[1730226503079,0.13172012,72954.0,72948.0,0.429344]
[1730226503080,0.068544,72949.0,72948.0,0.429344]
[1730226503382,1.5008,72952.0,72948.0,0.3608]
[1730226503582,1.5,72952.0,72951.0,0.068542]
[1730226503778,1.568541,72952.0,72951.0,0.068542]
[1730226504777,1.568541,72952.0,72948.0,0.38065786]
[1730226504778,1.5,72952.0,72948.0,0.38065786]
[1730226504984,0.068544,72949.0,72948.0,0.44919986]
[1730226506489,1.50072,72952.0,72951.0,0.068542]
[1730226506696,1.568541,72952.0,72951.0,0.068542]
[1730226508587,1.57042467,72952.0,72951.0,0.068542]
[1730226509783,1.57042467,72952.0,72951.0,0.20026212]
[1730226509784,0.00188367,72952.0,72951.0,0.20026212]
[1730226511490,1.50076,72953.0,72952.0,0.068541]
[1730226511781,1.5,72953.0,72952.0,0.068541]
[1730226512287,1.56854,72953.0,72952.0,0.068541]
[1730226512492,0.068543,72952.0,72951.0,0.068541]
[1730226515286,0.068544,72949.0,72948.0,0.38065786]
[1730226515487,0.20026412,72949.0,72948.0,0.3608]
[1730226515686,0.20026412,72949.0,72948.0,0.429345]
[1730226516186,0.20026412,72949.0,72948.0,0.3608]
[1730226517191,0.068544,72949.0,72948.0,0.429345]
[1730226517495,0.3608,72959.0,72948.0,0.429345]
[1730226517496,0.068526,72969.0,72954.0,0.068539]
[1730226517684,0.068526,72969.0,72968.0,0.068526]
[1730226517991,1.568526,72969.0,72968.0,0.068526]
[1730226518589,0.068531,72965.0,72964.0,0.068529]
[1730226519591,0.068531,72965.0,72961.0,0.46096]
[1730226519592,0.13172012,72968.0,72966.0,0.068528]
[1730226519886,1.569326,72969.0,72968.0,0.068526]
[1730226520081,1.568526,72969.0,72968.0,0.068526]
[1730226520279,1.72485439,72969.0,72968.0,0.03084903]
[1730226522590,1.72313602,72969.0,72968.0,0.03084903]
[1730226524688,1.72313602,72969.0,72961.0,0.37694537]
[1730226524689,1.78516095,72969.0,72961.0,0.01614537]
[1730226524888,0.068536,72960.0,72959.0,0.068534]
[1730226525090,0.11258387,72960.0,72959.0,0.068534]
[1730226525395,0.16274155,72960.0,72959.0,0.068534]
[1730226525889,0.09420555,72960.0,72955.0,0.07676321]
[1730226526190,0.068537,72956.0,72955.0,0.14530021]
[1730226526396,0.11258487,72956.0,72955.0,0.14530021]
[1730226526586,0.16274255,72956.0,72955.0,0.14530021]
[1730226526992,0.29446267,72956.0,72955.0,0.14530021]
[1730226527193,0.35310722,72956.0,72955.0,0.14530021]
[1730226527395,0.35310722,72956.0,72955.0,0.0612]
[1730226527595,0.20025712,72956.0,72955.0,0.0612]
[1730226528295,0.20025712,72956.0,72955.0,0.129738]
[1730226528591,0.20025712,72956.0,72955.0,0.0612]
[1730226533089,0.068537,72956.0,72955.0,0.129738]
[1730226535993,0.16172925,72956.0,72955.0,0.129738]
[1730226540601,0.1149417,72956.0,72955.0,0.129738]
[1730226541005,0.1149417,72956.0,72955.0,0.0612]
[1730226541403,0.1149417,72956.0,72955.0,0.129738]
[1730226541596,0.24666182,72956.0,72955.0,0.129738]
[1730226542000,0.24666182,72956.0,72955.0,0.0612]
[1730226542306,0.24666182,72956.0,72955.0,0.129738]
[1730226542505,0.20025712,72956.0,72955.0,0.129738]
[1730226542801,1.70025712,72956.0,72955.0,0.129738]
[1730226543406,1.70025712,72956.0,72955.0,0.0612]
[1730226546507,0.06854,72953.0,72952.0,0.3616]
[1730226546706,0.068551,72942.0,72941.0,0.129551]
[1730226547005,0.20027112,72942.0,72941.0,0.061]
[1730226547208,1.70027112,72942.0,72941.0,0.061]
[1730226551300,0.068561,72931.0,72930.0,0.3608]
[1730226551498,0.20028112,72931.0,72930.0,0.3608]
[1730226552612,0.20028112,72931.0,72930.0,0.4184]
[1730226552802,1.70028112,72931.0,72930.0,0.486962]
[1730226553400,1.70028112,72931.0,72930.0,0.4184]
[1730226553702,2.06108112,72931.0,72930.0,0.0576]
[1730226554604,2.06108112,72931.0,72920.0,0.06857]
[1730226554911,0.20029012,72921.0,72920.0,0.06857]
[1730226555107,0.20029012,72921.0,72920.0,0.08447885]
[1730226555309,0.13172012,72921.0,72920.0,0.08447885]
[1730226555507,0.068571,72920.0,72919.0,0.1091421]
[1730226556107,0.068571,72920.0,72919.0,0.08465946]
[1730226556409,0.068571,72920.0,72919.0,0.068572]
[1730226557217,0.068573,72918.0,72910.0,0.3608]
[1730226557514,0.20029912,72912.0,72911.0,0.1144]
[1730226557714,1.70029912,72912.0,72911.0,0.1144]
[1730226559108,1.70029912,72912.0,72911.0,0.0576]
[1730226559819,0.068589,72901.0,72900.0,0.068589]
[1730226560112,0.20030912,72901.0,72900.0,0.08456477]
[1730226561018,0.13172012,72901.0,72900.0,0.08456477]
[1730226561212,0.3608,72904.0,72903.0,0.068587]
[1730226562318,0.49252012,72904.0,72903.0,0.068587]
[1730226563620,0.13172012,72904.0,72903.0,0.068587]
[1730226563814,0.06858,72911.0,72903.0,0.20030712]
[1730226564012,0.3608,72914.0,72907.0,0.13172012]
[1730226564213,0.13172012,72913.0,72909.0,0.3608]
[1730226564413,0.13172012,72913.0,72912.0,0.068579]
[1730226564821,0.13172012,72913.0,72912.0,0.058579]
[1730226565118,0.068585,72906.0,72904.0,0.068586]
[1730226565322,0.13172012,72905.0,72899.0,0.068591]
[1730226565620,0.49252012,72913.0,72912.0,0.068579]
[1730226565819,0.49252012,72913.0,72904.0,0.3608]
[1730226566023,0.13172012,72905.0,72904.0,0.068586]
[1730226566227,0.20030512,72905.0,72904.0,0.068586]
[1730226566917,0.13172012,72905.0,72898.0,0.07339843]
[1730226567112,0.13172012,72905.0,72904.0,0.068586]
[1730226567416,0.20030512,72905.0,72904.0,0.068586]
[1730226568015,1.70030512,72905.0,72904.0,0.068586]
[1730226568215,1.63172012,72905.0,72904.0,0.068586]
[1730226568418,0.13172012,72908.0,72907.0,0.068583]
[1730226568815,1.568582,72909.0,72908.0,0.068583]
[1730226569324,1.5,72909.0,72908.0,0.068583]
[1730226569526,1.70030212,72909.0,72908.0,0.068583]
[1730226571017,1.63172012,72909.0,72901.0,0.3608]
[1730226571334,0.13172012,72904.0,72903.0,0.068587]
[1730226572215,0.13172012,72908.0,72907.0,0.068583]
[1730226572820,0.20030312,72908.0,72907.0,0.068583]
[1730226575627,0.068584,72907.0,72904.0,0.068585]
[1730226575826,0.13172012,72905.0,72904.0,0.068585]
[1730226576731,0.068588,72902.0,72899.0,0.10931566]
[1730226576932,0.13172012,72900.0,72899.0,0.068591]
[1730226577128,0.13172012,72900.0,72899.0,0.10931566]
[1730226577425,0.13172012,72900.0,72899.0,0.068591]
[1730226577819,0.068591,72899.0,72898.0,0.01619843]
[1730226578020,0.068592,72898.0,72897.0,0.0615]
[1730226578222,0.068594,72896.0,72895.0,0.3608]
[1730226578420,0.068594,72896.0,72891.0,0.058]
[1730226578421,0.068598,72892.0,72891.0,0.05429955]
[1730226578632,0.20031812,72892.0,72891.0,0.04093927]
[1730226578816,1.70031812,72892.0,72891.0,0.04093927]
[1730226579025,0.068598,72891.0,72890.0,0.04093927]
[1730226579425,1.63252012,72892.0,72890.0,0.05429955]
[1730226579627,1.63172012,72892.0,72889.0,0.05429955]
[1730226579835,0.0686,72889.0,72888.0,0.19792816]
[1730226580132,0.0686,72889.0,72888.0,0.1982959]
[1730226580432,0.0686,72889.0,72888.0,0.19827765]
[1730226580731,1.63352012,72892.0,72891.0,0.077598]
[1730226580937,1.54339062,72892.0,72891.0,0.077598]
[1730226581122,1.501,72892.0,72891.0,0.077598]
[1730226581322,0.001,72889.0,72888.0,0.15562861]
[1730226581537,0.13172012,72908.0,72891.0,0.13172012]
[1730226581726,0.00205836,72911.0,72900.0,0.13172012]
[1730226581727,0.068582,72909.0,72900.0,0.13172012]
[1730226581920,0.068582,72909.0,72908.0,0.068583]
[1730226582432,0.0008,72910.0,72909.0,0.068582]
[1730226582728,0.00205836,72911.0,72910.0,0.068581]
[1730226587135,0.20028912,72923.0,72919.0,0.068572]
[1730226587331,0.068571,72922.0,72921.0,0.068569]
[1730226587644,1.568571,72922.0,72921.0,0.068569]
[1730226590036,0.068571,72922.0,72921.0,0.068569]
[1730226590238,0.068566,72926.0,72925.0,0.068566]
[1730226590435,0.13172012,72931.0,72924.0,0.3608]
[1730226590637,0.13172012,72927.0,72926.0,0.068563]
[1730226590943,0.13172012,72927.0,72921.0,0.01585563]
[1730226591141,0.13172012,72927.0,72926.0,0.068566]
[1730226591445,0.20028512,72927.0,72926.0,0.068566]
[1730226591746,0.20028512,72927.0,72917.0,0.3608]
[1730226591747,0.068568,72924.0,72923.0,0.068568]
[1730226592048,0.068572,72921.0,72920.0,0.068571]
[1730226592337,0.20029212,72921.0,72920.0,0.068571]
[1730226592541,0.068573,72918.0,72917.0,0.3608]
[1730226592933,0.068573,72918.0,72917.0,0.429374]
[1730226593134,0.068573,72918.0,72917.0,0.3608]
[1730226594043,1.568573,72918.0,72917.0,0.3608]
[1730226594444,0.068583,72908.0,72906.0,0.0020575]
[1730226594750,0.20030312,72907.0,72906.0,0.0020575]
[1730226595140,0.56110312,72907.0,72906.0,0.0020575]
[1730226595339,0.068588,72902.0,72901.0,0.068589]
[1730226595544,0.20030812,72902.0,72901.0,0.068589]
[1730226596439,0.20030812,72902.0,72898.0,0.01591278]
[1730226596644,0.068595,72896.0,72895.0,0.068594]
[1730226596941,0.20031512,72896.0,72895.0,0.068594]
[1730226597749,0.20031412,72896.0,72895.0,0.068595]
[1730226598142,0.068593,72897.0,72896.0,0.068592]
[1730226598954,0.20031312,72897.0,72896.0,0.068592]
[1730226599253,0.20031312,72897.0,72896.0,0.071592]
[1730226600247,0.20031312,72897.0,72896.0,0.075592]
[1730226600550,0.20031312,72897.0,72896.0,0.007]
[1730226601646,0.068593,72897.0,72896.0,0.007]
[1730226602952,0.480153,72897.0,72896.0,0.007]
[1730226603151,0.068593,72897.0,72896.0,0.007]
[1730226603363,1.980153,72897.0,72896.0,0.007]
[1730226604051,1.980153,72897.0,72896.0,0.006]
[1730226604355,2.037953,72897.0,72896.0,0.005]
[1730226604651,1.568593,72897.0,72896.0,0.005]
[1730226604851,1.5,72897.0,72896.0,0.073594]
[1730226605054,0.068591,72899.0,72898.0,0.068591]
[1730226605756,0.068593,72897.0,72896.0,0.005]
[1730226606358,0.068593,72897.0,72896.0,0.002]
[1730226607155,0.068594,72896.0,72895.0,0.068594]
[1730226607350,0.20031412,72896.0,72895.0,0.068594]
[1730226608151,0.13172012,72896.0,72895.0,0.068594]
[1730226608354,0.068591,72899.0,72898.0,0.068591]
[1730226608756,1.5,72900.0,72898.0,0.49252012]
[1730226608962,0.13172012,72909.0,72899.0,0.068591]
[1730226609161,0.13172012,72909.0,72908.0,0.068583]
[1730226609355,0.00205787,72911.0,72910.0,0.068581]
[1730226610065,0.00205787,72911.0,72910.0,0.429381]
[1730226611157,0.00205787,72911.0,72910.0,0.44497707]
[1730226612955,0.07063787,72911.0,72910.0,0.44497707]
[1730226616266,1.57063787,72911.0,72910.0,0.44497707]
[1730226617152,1.57063787,72911.0,72910.0,0.3608]
[1730226618757,2.27433787,72911.0,72907.0,0.068583]
[1730226618954,0.20030312,72908.0,72907.0,0.068583]
[1730226619165,0.29225276,72908.0,72907.0,0.03238597]
[1730226619666,0.29225276,72908.0,72898.0,0.01597192]
[1730226619667,0.17471319,72908.0,72898.0,0.01597192]
[1730226619863,0.13172012,72899.0,72898.0,0.068592]
[1730226620063,0.17471319,72899.0,72898.0,0.068592]
[1730226620574,0.24330419,72899.0,72898.0,0.068592]
[1730226622066,0.29106679,72899.0,72898.0,0.068592]
[1730226622765,0.22247579,72899.0,72898.0,0.068592]
[1730226622966,0.22247579,72899.0,72898.0,0.069592]
[1730226626062,0.13172012,72899.0,72898.0,0.069592]
[1730226627658,0.20031112,72899.0,72898.0,0.069592]
[1730226635376,0.13172012,72899.0,72898.0,0.069592]
[1730226635573,0.13172012,72899.0,72898.0,0.1242374]
[1730226635779,0.20031112,72899.0,72898.0,0.1242374]
[1730226637267,0.20031112,72899.0,72898.0,0.069592]
[1730226638871,0.33203124,72899.0,72898.0,0.05556227]
[1730226639070,0.068595,72895.0,72891.0,0.05456227]
[1730226639274,0.068595,72895.0,72889.0,0.05456227]
[1730226639275,0.13172012,72892.0,72889.0,0.05456227]
[1730226639579,0.068601,72888.0,72887.0,0.06857]
[1730226639777,0.068601,72888.0,72887.0,0.0844857]
[1730226640274,1.568601,72888.0,72886.0,0.06857]
[1730226640576,0.20032212,72887.0,72886.0,0.06857]
[1730226641284,0.20032212,72887.0,72882.0,0.068607]
[1730226641285,0.28896529,72887.0,72882.0,0.068607]
[1730226641470,0.20032612,72883.0,72882.0,0.068607]
[1730226641778,0.28896929,72883.0,72882.0,0.068607]
[1730226642565,0.28896929,72883.0,72882.0,0.076607]
[1730226642772,0.28896929,72883.0,72882.0,0.008]
[1730226643074,0.068607,72882.0,72881.0,0.3608]
[1730226643274,0.15725017,72882.0,72881.0,0.3608]
[1730226645477,0.15725017,72882.0,72881.0,0.429408]
[1730226645680,0.08864317,72882.0,72881.0,0.429408]
[1730226645988,0.04144706,72882.0,72881.0,0.56112812]
[1730226646176,0.04144706,72882.0,72881.0,0.429408]
[1730226646377,0.04144706,72882.0,72881.0,0.56112812]
[1730226646581,0.00076,72888.0,72881.0,0.56112812]
[1730226646582,0.13172012,72909.0,72903.0,0.068587]
[1730226646780,0.04737458,72908.0,72907.0,0.068583]
[1730226647477,1.54754416,72908.0,72907.0,0.068583]
[1730226647677,1.74784728,72908.0,72907.0,0.068583]
[1730226648182,0.068585,72905.0,72904.0,0.115]
[1730226648384,0.11612916,72905.0,72904.0,0.115]
[1730226648885,0.068586,72904.0,72903.0,0.00096]
[1730226649076,0.068588,72902.0,72901.0,0.01605488]
[1730226649272,0.13172012,72902.0,72897.0,0.06787443]
[1730226649477,0.068594,72896.0,72895.0,0.06787443]
[1730226649682,0.068595,72895.0,72893.0,0.19497043]
[1730226650080,0.068595,72895.0,72893.0,0.12637443]
[1730226650285,0.068595,72895.0,72894.0,0.429396]
[1730226650779,0.068595,72895.0,72894.0,0.49727043]
[1730226650988,0.13172012,72898.0,72894.0,0.42867443]
[1730226651190,0.06859,72901.0,72900.0,0.068589]
[1730226651491,0.13172012,72905.0,72900.0,0.51644714]
[1730226651676,0.20030512,72905.0,72904.0,0.068586]
[1730226654284,0.068585,72905.0,72904.0,0.068586]
[1730226655893,0.068585,72905.0,72904.0,0.08400355]
[1730226656187,0.15738616,72905.0,72900.0,0.33499258]
[1730226656392,0.21330734,72904.0,72903.0,0.068587]
[1730226656594,0.15738816,72904.0,72903.0,0.068587]
[1730226657889,0.15738816,72904.0,72900.0,0.33499258]
[1730226657890,0.15738816,72904.0,72900.0,0.25258867]
[1730226658094,1.5008,72908.0,72900.0,0.32117867]
[1730226658095,0.13172012,72901.0,72900.0,0.32117867]
[1730226658290,0.22052128,72901.0,72900.0,0.33660255]
[1730226658490,0.34502946,72901.0,72900.0,0.33660255]
[1730226658696,0.34502946,72901.0,72900.0,0.26801255]
[1730226659291,0.34502946,72901.0,72900.0,0.25258867]
[1730226659492,0.47674958,72901.0,72900.0,0.25258867]
[1730226659793,0.068596,72894.0,72893.0,0.0585]
[1730226660000,0.28911728,72894.0,72893.0,0.0585]
[1730226660196,0.068597,72893.0,72892.0,0.3608]
[1730226660496,0.068597,72893.0,72880.0,0.4723]
[1730226660497,0.14472034,72893.0,72880.0,0.4723]
[1730226660703,0.068603,72886.0,72885.0,0.0706619]
[1730226660890,0.15043398,72886.0,72885.0,0.0706619]
[1730226661086,0.15043398,72886.0,72885.0,0.0020579]
[1730226661295,0.068607,72884.0,72883.0,0.068605]
[1730226661495,0.08183098,72884.0,72883.0,0.068605]
[1730226661794,1.58183098,72884.0,72883.0,0.068605]
[1730226661995,1.63775016,72884.0,72883.0,0.068605]
[1730226662193,1.58183098,72884.0,72883.0,0.068605]
[1730226662396,0.08183098,72884.0,72883.0,0.068605]